fUST/lending_fUST_20250713
["ID","MTS","AMOUNT","RATE_DAILY","PERIOD"]
[371745480,1752413447465,-498.82,0.00018356,2]
[371745481,1752413447474,-640.36,0.00018356,2]
[371745482,1752413447484,-460.0,0.00018356,2]
[371745483,1752413447493,-460.0,0.00018356,2]
[371745484,1752413447503,-460.0,0.00018356,2]
[371745485,1752413447512,-1627.73,0.00018356,2]
[371745486,1752413447521,-1279.12,0.00018356,2]
[371745487,1752413447530,-460.0,0.00018356,2]
[371745488,1752413447539,-460.0,0.00018356,2]
[371745489,1752413447548,-460.0,0.00018356,2]
[371745490,1752413447558,-460.0,0.00018356,2]
[371745491,1752413447567,-460.0,0.00018356,2]
[371745492,1752413447576,-460.0,0.00018356,2]
[371745493,1752413447586,-460.0,0.00018356,2]
[371745494,1752413447597,-495.55339422,0.00018356,2]
[371745495,1752413447606,-824.22,0.00018356,2]
[371745496,1752413447616,-460.0,0.00018356,2]
[371745497,1752413447626,-460.0,0.00018356,2]
[371745498,1752413447637,-726.04,0.00018356,2]
[371745499,1752413447647,-380.0,0.00018356,2]
[371745500,1752413447657,-1255.46,0.00018356,2]
[371745501,1752413447667,-460.0,0.00018356,2]
[371745502,1752413447677,-460.0,0.00018356,2]
[371745503,1752413447686,-570.95,0.00018356,2]
[371745504,1752413447696,-151.0,0.00018356,2]
[371745505,1752413447706,-460.0,0.00018356,2]
[371745506,1752413447715,-1582.65,0.00018356,2]
[371745507,1752413447726,-528.12,0.00018356,2]
[371745508,1752413447735,-460.0,0.00018356,2]
[371745509,1752413447745,-652.52,0.00018356,2]
[371745510,1752413447755,-460.0,0.00018356,2]
[371745511,1752413447765,-460.0,0.00018356,2]
[371745512,1752413447774,-1639.75,0.00018356,2]
[371745513,1752413447784,-460.0,0.00018356,2]
[371745514,1752413447794,-460.0,0.00018356,2]
[371745515,1752413447804,-460.0,0.00018356,2]
[371745516,1752413447815,-460.0,0.00018356,2]
[371745517,1752413447825,-2000.0,0.00018416,2]
[371745518,1752413447837,-161.248297,0.00018517,2]
[371745519,1752413447846,-360.0,0.00018529,2]
[371745520,1752413447859,-151.0,0.0001863,2]
[371745521,1752413447868,-211.341786,0.0001863,2]
[371745522,1752413447877,-211.341786,0.0001863,2]
[371745523,1752413447886,-460.0,0.0001863,2]
[371745524,1752413447896,-460.0,0.0001863,2]
[371745525,1752413447906,-460.0,0.0001863,2]
[371745526,1752413447915,-460.0,0.0001863,2]
[371745527,1752413448027,-460.0,0.0001863,2]
[371745528,1752413448037,-460.0,0.0001863,2]
[371745529,1752413448047,-460.0,0.0001863,2]
[371745530,1752413448056,-498.82,0.0001863,2]
[371745531,1752413448065,-640.36,0.0001863,2]
[371745532,1752413448075,-460.0,0.0001863,2]
[371745533,1752413448085,-273.60939396,0.0001863,2]
[371745534,1752413448094,-460.0,0.0001863,2]
[371745535,1752413448104,-1627.73,0.0001863,2]
[371745536,1752413448113,-1279.12,0.0001863,2]
[371745537,1752413448123,-460.0,0.0001863,2]
[371745538,1752413448132,-460.0,0.0001863,2]
[371745539,1752413448142,-460.0,0.0001863,2]
[371745540,1752413448152,-460.0,0.0001863,2]
[371745541,1752413448161,-460.0,0.0001863,2]
[371745542,1752413448171,-460.0,0.0001863,2]
[371745543,1752413448180,-460.0,0.0001863,2]
[371745544,1752413448190,-460.0,0.0001863,2]
[371745545,1752413448199,-824.22,0.0001863,2]
[371745546,1752413448209,-460.0,0.0001863,2]
[371745547,1752413448219,-726.04,0.0001863,2]
[371745548,1752413448229,-1255.46,0.0001863,2]
[371745549,1752413448239,-460.0,0.0001863,2]
[371745550,1752413448248,-460.0,0.0001863,2]
[371745551,1752413448258,-570.95,0.0001863,2]
[371745552,1752413448268,-264.28980338,0.0001863,2]
[371745553,1752413448278,-1582.65,0.0001863,2]
[371745554,1752413448287,-528.12,0.0001863,2]
[371745555,1752413448297,-345.0,0.0001863,2]
[371745556,1752413448306,-652.52,0.0001863,2]
[371745557,1752413448316,-460.0,0.0001863,2]
[371745559,1752413448326,-460.0,0.0001863,2]
[371745560,1752413448337,-1639.75,0.0001863,2]
[371745561,1752413448347,-460.0,0.0001863,2]
[371745562,1752413448356,-460.0,0.0001863,2]
[371745563,1752413448366,-460.0,0.0001863,2]
[371745564,1752413448375,-460.0,0.0001863,2]
[371745565,1752413448385,-500.0,0.00018812,2]
[371745566,1752413448395,-502.3432928,0.00018812,2]
[371745567,1752413448405,-500.0,0.00018812,2]
[371745568,1752413448414,-366.56020996,0.00018812,2]
[371745569,1752413448425,-500.0,0.00018812,2]
[371745570,1752413448435,-500.0,0.00018812,2]
[371745571,1752413448445,-213.42416991,0.00018862,2]
[371745572,1752413448455,-154.069854,0.00018904,2]
[371745573,1752413448465,-151.0,0.00018904,2]
[371745574,1752413448476,-460.0,0.00018904,2]
[371745575,1752413448487,-460.0,0.00018904,2]
[371745576,1752413448498,-460.0,0.00018904,2]
[371745577,1752413448508,-460.0,0.00018904,2]
[371745578,1752413448518,-460.0,0.00018904,2]
[371745579,1752413448528,-235.08701847,0.00018904,2]
[371745580,1752413448539,-498.82,0.00018904,2]
[371745581,1752413448549,-640.36,0.00018904,2]
[371745582,1752413448559,-460.0,0.00018904,2]
[371745583,1752413448569,-460.0,0.00018904,2]
[371745584,1752413448580,-1627.73,0.00018904,2]
[371745585,1752413448590,-1279.12,0.00018904,2]
[371745586,1752413448600,-460.0,0.00018904,2]
[371745587,1752413448610,-460.0,0.00018904,2]
[371745588,1752413448619,-460.0,0.00018904,2]
[371745589,1752413448631,-460.0,0.00018904,2]
[371745590,1752413448641,-460.0,0.00018904,2]
[371745591,1752413448651,-460.0,0.00018904,2]
[371745592,1752413448661,-460.0,0.00018904,2]
[371745593,1752413448671,-824.22,0.00018904,2]
[371745594,1752413448681,-460.0,0.00018904,2]
[371745595,1752413448690,-726.04,0.00018904,2]
[371745596,1752413448700,-1255.46,0.00018904,2]
[371745597,1752413448710,-460.0,0.00018904,2]
[371745598,1752413448720,-460.0,0.00018904,2]
[371745599,1752413448729,-570.95,0.00018904,2]
[371745600,1752413448739,-1582.65,0.00018904,2]
[371745601,1752413448749,-528.12,0.00018904,2]
[371745602,1752413448759,-652.52,0.00018904,2]
[371745603,1752413448768,-460.0,0.00018904,2]
[371745604,1752413448778,-460.0,0.00018904,2]
[371745605,1752413448789,-1639.75,0.00018904,2]
[371745606,1752413448798,-460.0,0.00018904,2]
[371745607,1752413448807,-460.0,0.00018904,2]
[371745608,1752413448817,-460.0,0.00018904,2]
[371745609,1752413448827,-460.0,0.00018904,2]
[371745610,1752413448838,-2500.0,0.00018964,2]
[371745611,1752413448847,-420.0,0.00019077,2]
[371745612,1752413448862,-151.0,0.00019178,2]
[371745613,1752413448872,-151.0,0.00019178,2]
[371745614,1752413448882,-460.0,0.00019178,2]
[371745615,1752413448891,-460.0,0.00019178,2]
[371745616,1752413448902,-460.0,0.00019178,2]
[371745617,1752413448911,-460.0,0.00019178,2]
[371745618,1752413448921,-460.0,0.00019178,2]
[371745619,1752413448932,-460.0,0.00019178,2]
[371745620,1752413448942,-460.0,0.00019178,2]
[371745621,1752413448953,-460.0,0.00019178,2]
[371745622,1752413448963,-460.0,0.00019178,2]
[371745623,1752413448972,-460.0,0.00019178,2]
[371745624,1752413448982,-460.0,0.00019178,2]
[371745625,1752413448991,-460.0,0.00019178,2]
[371745626,1752413449000,-460.0,0.00019178,2]
[371745627,1752413449010,-460.0,0.00019178,2]
[371745628,1752413449019,-498.82,0.00019178,2]
[371745629,1752413449029,-640.36,0.00019178,2]
[371745630,1752413449038,-460.0,0.00019178,2]
[371745631,1752413449048,-460.0,0.00019178,2]
[371745632,1752413449058,-1627.73,0.00019178,2]
[371745633,1752413449067,-1279.12,0.00019178,2]
[371745634,1752413449077,-460.0,0.00019178,2]
[371745635,1752413449088,-460.0,0.00019178,2]
[371745636,1752413449098,-460.0,0.00019178,2]
[371745637,1752413449107,-460.0,0.00019178,2]
[371745638,1752413449117,-460.0,0.00019178,2]
[371745639,1752413449126,-460.0,0.00019178,2]
[371745640,1752413449136,-460.0,0.00019178,2]
[371745641,1752413449146,-824.22,0.00019178,2]
[371745642,1752413449157,-460.0,0.00019178,2]
[371745643,1752413449168,-726.04,0.00019178,2]
[371745644,1752413449178,-1255.46,0.00019178,2]
[371745645,1752413449188,-460.0,0.00019178,2]
[371745646,1752413449197,-460.0,0.00019178,2]
[371745647,1752413449207,-570.95,0.00019178,2]
[371745648,1752413449216,-1582.65,0.00019178,2]
[371745649,1752413449225,-528.12,0.00019178,2]
[371745650,1752413449235,-652.52,0.00019178,2]
[371745651,1752413449244,-460.0,0.00019178,2]
[371745652,1752413449253,-460.0,0.00019178,2]
[371745653,1752413449262,-1639.75,0.00019178,2]
[371745654,1752413449271,-560.39,0.00019178,2]
[371745655,1752413449280,-460.0,0.00019178,2]
[371745656,1752413449290,-460.0,0.00019178,2]
[371745657,1752413449300,-460.0,0.00019178,2]
[371745658,1752413449309,-198.38958192,0.00019178,2]
[371745659,1752413449319,-298.205529,0.00019178,2]
[371745660,1752413449330,-666.0,0.00019178,2]
[371745661,1752413449341,-2759.12,0.000192,2]
[371745662,1752413449350,-1341.98,0.000192,2]
[371745663,1752413449360,-1280.68,0.000192,2]
[371745664,1752413449370,-221.876257,0.000192,2]
[371745665,1752413449379,-500.0,0.00019328,2]
[371745666,1752413449389,-500.0,0.00019328,2]
[371745667,1752413449399,-500.0,0.00019328,2]
[371745668,1752413449408,-500.0,0.00019328,2]
[371745669,1752413449417,-500.0,0.00019328,2]
[371745670,1752413449427,-500.0,0.00019328,2]
[371745671,1752413449436,-500.0,0.00019328,2]
[371745672,1752413449446,-411.3821048,0.00019328,2]
[371745673,1752413449456,-500.0,0.00019328,2]
[371745674,1752413449465,-500.0,0.00019328,2]
[371745675,1752413449475,-500.0,0.00019328,2]
[371745676,1752413449485,-218.65775434,0.00019328,2]
[371745677,1752413449495,-156.353571,0.00019329,2]
[371745678,1752413449504,-151.0,0.00019329,2]
[371745679,1752413449514,-211.341786,0.00019329,2]
[371745680,1752413449523,-211.341786,0.00019329,2]
[371745681,1752413449534,-151.0,0.00019329,2]
[371745682,1752413449544,-151.0,0.00019329,2]
[371745683,1752413449554,-100000.0,0.00019329,2]
[371745684,1752413449564,-1000.0,0.0001936,2]
[371745685,1752413449574,-1000.0,0.0001936,2]
[371745686,1752413449585,-460.0,0.00019452,2]
[371745687,1752413449594,-460.0,0.00019452,2]
[371745688,1752413449604,-460.0,0.00019452,2]
[371745689,1752413449614,-460.0,0.00019452,2]
[371745690,1752413449624,-460.0,0.00019452,2]
[371745691,1752413449634,-498.82,0.00019452,2]
[371745692,1752413449644,-640.36,0.00019452,2]
[371745693,1752413449653,-460.0,0.00019452,2]
[371745694,1752413449663,-460.0,0.00019452,2]
[371745695,1752413449673,-1627.73,0.00019452,2]
[371745696,1752413449683,-1279.12,0.00019452,2]
[371745697,1752413449693,-460.0,0.00019452,2]
[371745698,1752413449703,-460.0,0.00019452,2]
[371745699,1752413449712,-460.0,0.00019452,2]
[371745700,1752413449722,-460.0,0.00019452,2]
[371745701,1752413449731,-460.0,0.00019452,2]
[371745702,1752413449741,-542.25766755,0.00019452,2]
[371745703,1752413449750,-460.0,0.00019452,2]
[371745704,1752413449759,-824.22,0.00019452,2]
[371745705,1752413449770,-460.0,0.00019452,2]
[371745706,1752413449780,-726.04,0.00019452,2]
[371745707,1752413449789,-1255.46,0.00019452,2]
[371745708,1752413449799,-421.67,0.00019452,2]
[371745709,1752413449808,-460.0,0.00019452,2]
[371745710,1752413449818,-570.95,0.00019452,2]
[371745711,1752413449828,-1582.65,0.00019452,2]
[371745712,1752413449838,-528.12,0.00019452,2]
[371745713,1752413449847,-652.52,0.00019452,2]
[371745714,1752413449861,-460.0,0.00019452,2]
[371745715,1752413449871,-460.0,0.00019452,2]
[371745716,1752413449880,-1639.75,0.00019452,2]
[371745717,1752413449890,-460.0,0.00019452,2]
[371745718,1752413449899,-460.0,0.00019452,2]
[371745719,1752413449909,-400.85195447,0.00019452,2]
[371745720,1752413449918,-587.0,0.00019631,2]
[371745721,1752413449928,-460.0,0.00019726,2]
[371745722,1752413449938,-460.0,0.00019726,2]
[371745723,1752413449947,-460.0,0.00019726,2]
[371745724,1752413449957,-460.0,0.00019726,2]
[371745725,1752413449966,-151.0,0.00019726,2]
[371745726,1752413449975,-460.0,0.00019726,2]
[371745727,1752413449985,-498.82,0.00019726,2]
[371745728,1752413449994,-640.36,0.00019726,2]
[371745729,1752413450003,-460.0,0.00019726,2]
[371745730,1752413450012,-151.0,0.00019726,2]
[371745731,1752413450022,-151.0,0.00019726,2]
[371745732,1752413450031,-460.0,0.00019726,2]
[371745733,1752413450041,-1627.73,0.00019726,2]
[371745734,1752413450051,-1279.12,0.00019726,2]
[371745735,1752413450060,-460.0,0.00019726,2]
[371745736,1752413450070,-460.0,0.00019726,2]
[371745737,1752413450079,-460.0,0.00019726,2]
[371745738,1752413450088,-460.0,0.00019726,2]
[371745739,1752413450097,-460.0,0.00019726,2]
[371745740,1752413450107,-460.0,0.00019726,2]
[371745741,1752413450117,-824.22,0.00019726,2]
[371745742,1752413450127,-460.0,0.00019726,2]
[371745743,1752413450136,-726.04,0.00019726,2]
[371745744,1752413450145,-1255.46,0.00019726,2]
[371745745,1752413450154,-460.0,0.00019726,2]
[371745746,1752413450163,-570.95,0.00019726,2]
[371745747,1752413450173,-151.0,0.00019726,2]
[371745748,1752413450183,-1582.65,0.00019726,2]
[371745749,1752413450193,-528.12,0.00019726,2]
[371745750,1752413450203,-652.52,0.00019726,2]
[371745751,1752413450213,-460.0,0.00019726,2]
[371745752,1752413450223,-460.0,0.00019726,2]
[371745753,1752413450234,-1639.75,0.00019726,2]
[371745754,1752413450244,-460.0,0.00019726,2]
[371745755,1752413450255,-460.0,0.00019726,2]
[371745756,1752413450266,-500.0,0.00019908,2]
[371745757,1752413450276,-151.0,0.00019999,2]
[371745758,1752413450286,-153.705584,0.00019999,2]
[371745759,1752413450297,-211.341786,0.0002,2]
[371745760,1752413450307,-211.341786,0.0002,2]
[371745761,1752413450317,-551.44,0.0002,2]
[371745762,1752413450326,-419.68,0.0002,2]
[371745763,1752413450337,-460.0,0.0002,2]
[371745764,1752413450347,-460.0,0.0002,2]
[371745765,1752413450357,-460.0,0.0002,2]
[371745766,1752413450366,-498.82,0.0002,2]
[371745767,1752413450375,-640.36,0.0002,2]
[371745768,1752413450385,-460.0,0.0002,2]
[371745769,1752413450394,-460.0,0.0002,2]
[371745770,1752413450403,-1627.73,0.0002,2]
[371745771,1752413450412,-1279.12,0.0002,2]
[371745772,1752413450421,-460.0,0.0002,2]
[371745773,1752413450431,-460.0,0.0002,2]
[371745774,1752413450531,-460.0,0.0002,2]
[371745775,1752413450542,-460.0,0.0002,2]
[371745776,1752413450552,-460.0,0.0002,2]
[371745777,1752413450562,-460.0,0.0002,2]
[371745778,1752413450572,-824.22,0.0002,2]
[371745779,1752413450583,-460.0,0.0002,2]
[371745780,1752413450592,-726.04,0.0002,2]
[371745781,1752413450602,-1008.63180382,0.0002,2]
[371745782,1752413450694,318.0,0.0004,14]
[371745783,1752413450725,1750.0,0.0004,14]
[371745784,1752413450738,-246.82819618,0.0002,2]
[371745785,1752413450748,-460.0,0.0002,2]
[371745786,1752413450758,-3262.89724298,0.0002,2]
[371745787,1752413450792,1750.0,0.0004,14]
[371745788,1752413450822,318.0,0.0004,14]
[371745789,1752413450884,1750.0,0.0004,14]
[371745790,1752413450965,318.0,0.0004,14]
[371745791,1752413451007,1750.0,0.0004,14]
[371745792,1752413451044,318.0,0.0004,14]
[371745793,1752413451086,1750.0,0.0004,14]
[371745794,1752413451117,318.0,0.0004,14]
[371745795,1752413451156,1750.0,0.0004,14]
[371745796,1752413451236,1750.0,0.0004,14]
[371745797,1752413451309,1750.0,0.0004,14]
[371745798,1752413451375,-968.03827031,0.00016702,2]
[371745799,1752413451385,-676.24172969,0.00016702,2]
[371745800,1752413451416,1750.0,0.0004,14]
[371745801,1752413451555,1750.0,0.0004,14]
[371745802,1752413451645,1750.0,0.0004,14]
[371745803,1752413451751,-291.79654062,0.00016702,2]
[371745804,1752413451761,-500.0,0.00016702,2]
[371745805,1752413451770,-677.39463213,0.00016702,2]
[371745806,1752413451841,1750.0,0.0004,14]
[371745807,1752413451897,5000.0,0.000399,10]
[371745808,1752413451946,1750.0,0.0004,14]
[371745809,1752413451981,1750.0,0.0004,14]
[371745810,1752413452013,1750.0,0.0004,14]
[371745811,1752413452051,1750.0,0.0004,14]
[371745812,1752413452088,1750.0,0.0004,14]
[371745813,1752413452126,1750.0,0.0004,14]
[371745814,1752413452175,1750.0,0.0004,14]
[371745815,1752413452187,-460.0,0.00016438,2]
[371745816,1752413452197,-290.64363818,0.00016702,2]
[371745817,1752413452206,-644.81042003,0.00016702,2]
[371745818,1752413452216,-968.03827031,0.00016702,2]
[371745819,1752413452225,-618.91037197,0.00016702,2]
[371745820,1752413452259,1750.0,0.0004,14]
[371745821,1752413452305,1750.0,0.0004,14]
[371745822,1752413452341,1750.0,0.0004,14]
[371745823,1752413452372,1750.0,0.0004,14]
[371745824,1752413452452,1750.0,0.0004,14]
[371745825,1752413452483,1750.0,0.0004,14]
[371745826,1752413452514,1750.0,0.0004,14]
[371745827,1752413452544,1750.0,0.0004,14]
[371745828,1752413452574,405.33342856,0.0004,14]
[371745829,1752413481804,8000.0,0.000399,10]
[371745830,1752413497852,5000.0,0.000399,10]
[371745832,1752413525833,193.27220424,0.00023969,10]
[371745833,1752413525908,193.27220424,0.00024245,10]
[371745834,1752413526007,193.27220424,0.00024521,11]
[371745835,1752413526115,193.27220424,0.00024797,11]
[371745836,1752413526215,193.27220424,0.00025072,12]
[371745837,1752413526296,193.27220424,0.00025348,13]
[371745838,1752413526391,193.27220424,0.00025624,13]
[371745839,1752413526494,193.27220424,0.000259,14]
[371745842,1752413546355,8116.57,0.000399,10]
[371745845,1752413631693,1152.61,0.000353,14]
[371745846,1752413660979,500.0,0.0004,15]
[371745847,1752413668832,150.2306827,0.0002119,30]
[371745848,1752413681800,370.52092615,0.00023969,10]
[371745849,1752413681875,370.52092615,0.00024245,10]
[371745850,1752413681966,370.52092615,0.00024521,11]
[371745851,1752413682043,370.52092615,0.00024797,11]
[371745852,1752413682170,370.52092615,0.00025072,12]
[371745853,1752413682263,370.52092615,0.00025348,13]
[371745854,1752413682351,370.52092615,0.00025624,13]
[371745855,1752413682436,370.52092615,0.000259,14]
[371745856,1752413740658,525.37265586,0.00028,10]
[371745857,1752413741156,525.37265586,0.00028,10]
[371745859,1752413772955,346.54,0.0004,10]
[371745860,1752413805438,200.0,0.00025,10]
[371745861,1752413817127,203.111193,0.00027397,120]
[371745862,1752413817325,203.111193,0.00034247,120]
[371745864,1752413836053,284.76241021,0.00023969,10]
[371745865,1752413836139,284.76241021,0.00024245,10]
[371745866,1752413836250,284.76241021,0.00024521,11]
[371745867,1752413836332,284.76241021,0.00024797,11]
[371745868,1752413836412,284.76241021,0.00025072,12]
[371745869,1752413836539,284.76241021,0.00025348,13]
[371745870,1752413836623,284.76241021,0.00025624,13]
[371745871,1752413836710,284.76241021,0.000259,14]
[371745872,1752413837610,1037.35,0.00037,14]
[371745873,1752413874214,2900.0,0.0002589,10]
[371745874,1752413953784,9999.0,0.0004,10]
[371745875,1752413988465,247.9669606,0.00023969,10]
[371745876,1752413988574,247.9669606,0.00024245,10]
[371745877,1752413988653,247.9669606,0.00024521,11]
[371745878,1752413988747,247.9669606,0.00024797,11]
[371745879,1752413988870,247.9669606,0.00025072,12]
[371745880,1752413988984,247.9669606,0.00025348,13]
[371745881,1752413989361,247.9669606,0.00025624,13]
[371745882,1752413989450,247.9669606,0.000259,14]
[371745884,1752414042593,933.61,0.000329,14]
[371745886,1752414043670,525.37265586,0.00028,10]
[371745887,1752414044616,525.37265586,0.00028,10]
[371745888,1752414059596,500.0,0.00039,30]
[371745889,1752414091747,496.931123,0.00013699,2]
[371745894,1752414149319,200.0,0.00025293,50]
[371745895,1752414151284,181.84243777,0.00024038,10]
[371745896,1752414151369,181.84243777,0.00024348,11]
[371745897,1752414151458,181.84243777,0.00024659,11]
[371745898,1752414151556,181.84243777,0.00024969,12]
[371745899,1752414151662,181.84243777,0.00025279,12]
[371745900,1752414151764,181.84243777,0.0002559,13]
[371745901,1752414152018,181.84243777,0.000259,14]
[371745902,1752414174788,2642.4,0.0004,10]
[371745903,1752414176379,1500.0,0.00025,14]
[371745904,1752414176786,1500.0,0.00025,14]
[371745905,1752414177215,1500.0,0.00025,14]
[371745906,1752414178239,1500.0,0.00025,14]
[371745907,1752414178713,1500.0,0.00025,14]
[371745908,1752414179142,1500.0,0.00025,14]
[371745909,1752414179601,1500.0,0.00025,14]
[371745910,1752414180026,1500.0,0.00025,14]
[371745911,1752414180493,1500.0,0.00025,14]
[371745913,1752414180980,1500.0,0.00025,14]
[371745914,1752414181619,1500.0,0.00025,14]
[371745915,1752414182665,1500.0,0.00025,14]
[371745916,1752414183159,1500.0,0.00025,14]
[371745917,1752414183734,1500.0,0.00025,14]
[371745918,1752414184195,1500.0,0.00025,14]
[371745919,1752414184705,1500.0,0.00025,14]
[371745920,1752414185225,1500.0,0.00025,14]
[371745921,1752414185672,1500.0,0.00025,14]
[371745922,1752414186147,1500.0,0.00025,14]
[371745923,1752414186585,1500.0,0.00025,14]
[371745924,1752414187069,1500.0,0.00025,14]
[371745925,1752414187538,1500.0,0.00025,14]
[371745926,1752414188052,1500.0,0.00025,14]
[371745927,1752414188526,1500.0,0.00025,14]
[371745928,1752414189617,1500.0,0.00025,14]
[371745929,1752414190055,1500.0,0.00025,14]
[371745930,1752414190646,1500.0,0.00025,14]
[371745931,1752414191093,1500.0,0.00025,14]
[371745932,1752414191668,1500.0,0.00025,14]
[371745933,1752414193865,1500.0,0.00025,14]
[371745934,1752414194384,1500.0,0.00025,14]
[371745936,1752414194958,1500.0,0.00025,14]
[371745937,1752414195419,1500.0,0.00025,14]
[371745938,1752414195980,1500.0,0.00025,14]
[371745939,1752414196375,1500.0,0.00025,14]
[371745940,1752414196833,1500.0,0.00025,14]
[371745941,1752414197177,2565.0,0.0004,10]
[371745942,1752414197283,1500.0,0.00025,14]
[371745943,1752414197833,1500.0,0.00025,14]
[371745944,1752414198254,1500.0,0.00025,14]
[371745945,1752414198803,1500.0,0.00025,14]
[371745946,1752414199251,378.929863,0.00025,14]
[371745947,1752414205529,2565.0,0.0004,10]
[371745949,1752414246811,5000.0,0.0004,120]
[371745950,1752414268834,14906.4722788,0.0004,120]
[371745951,1752414347084,525.37265586,0.00028,10]
[371745952,1752414347531,525.37265586,0.00028,10]
[371745962,1752414483866,12598.31844336,0.00026,30]
[371745968,1752414619159,230.68503973,0.00026,30]
[371745969,1752414622462,260.56377101,0.00024038,10]
[371745970,1752414622556,260.56377101,0.00024348,11]
[371745971,1752414622642,260.56377101,0.00024659,11]
[371745972,1752414622739,260.56377101,0.00024969,12]
[371745973,1752414622813,260.56377101,0.00025279,12]
[371745974,1752414622905,260.56377101,0.0002559,13]
[371745976,1752414623308,260.56377101,0.000259,14]
[371746244,1752414638629,-186.74614868,0.00016338,2]
[371746247,1752414638643,-200.5,0.00016348,2]
[371746249,1752414638656,-300.0,0.00016437,2]
[371746251,1752414638666,-164.5419379,0.00016438,2]
[371746253,1752414638679,-460.0,0.00016438,2]
[371746255,1752414638689,-460.0,0.00016438,2]
[371746257,1752414638699,-460.0,0.00016438,2]
[371746259,1752414638709,-229.27360242,0.00016438,2]
[371746261,1752414638720,-460.0,0.00016438,2]
[371746263,1752414638731,-460.0,0.00016438,2]
[371746265,1752414638741,-460.0,0.00016438,2]
[371746267,1752414638750,-460.0,0.00016438,2]
[371746269,1752414638760,-460.0,0.00016438,2]
[371746271,1752414638770,-460.0,0.00016438,2]
[371746273,1752414638780,-460.0,0.00016438,2]
[371746275,1752414638790,-460.0,0.00016438,2]
[371746277,1752414638799,-460.0,0.00016438,2]
[371746279,1752414638810,-460.0,0.00016438,2]
[371746281,1752414638820,-460.0,0.00016438,2]
[371746283,1752414638829,-460.0,0.00016438,2]
[371746285,1752414638839,-460.0,0.00016438,2]
[371746287,1752414638849,-460.0,0.00016438,2]
[371746289,1752414638859,-470.06,0.00016438,2]
[371746292,1752414638869,-460.0,0.00016438,2]
[371746294,1752414638879,-460.0,0.00016438,2]
[371746295,1752414638889,-460.0,0.00016438,2]
[371746297,1752414638899,-460.0,0.00016438,2]
[371746300,1752414638911,-460.0,0.00016438,2]
[371746304,1752414638921,-460.0,0.00016438,2]
[371746308,1752414638931,-520.01,0.00016438,2]
[371746311,1752414638940,-460.0,0.00016438,2]
[371746313,1752414638949,-460.0,0.00016438,2]
[371746316,1752414638959,-460.0,0.00016438,2]
[371746318,1752414638968,-460.0,0.00016438,2]
[371746320,1752414638978,-460.0,0.00016438,2]